bitfinex-derivatives/quotes_ETHF0:USTF0_20251107
["timestamp","ask_amount","ask_price","bid_price","bid_amount"]
[1762542402746,0.14198215,3422.0,3421.7,1.04065574]
[1762542402747,0.65768695,3421.9,3421.8,0.77964153]
[1762542402949,0.18395695,3421.9,3421.8,0.47374]
[1762542403248,0.18395695,3421.9,3421.8,0.79241052]
[1762542403555,0.14198215,3422.0,3421.9,0.47373]
[1762542404050,0.14198215,3422.0,3421.9,0.50103507]
[1762542404439,0.14198215,3422.0,3421.9,1.2806766]
[1762542404946,0.00208215,3422.0,3421.9,1.2806766]
[1762542405151,0.00208215,3422.0,3421.9,0.50103507]
[1762542407348,0.00208215,3422.0,3421.9,1.2796459]
[1762542407549,0.14658215,3422.0,3421.9,1.2796459]
[1762542408457,0.14658215,3422.0,3421.9,1.27965812]
[1762542408851,0.14658215,3422.0,3421.9,0.50103507]
[1762542409252,0.85709215,3422.0,3421.9,0.02730507]
[1762542409452,0.85709215,3422.0,3421.7,0.77862305]
[1762542409453,0.66817744,3421.8,3421.7,0.77862305]
[1762542409652,0.14658215,3422.0,3421.4,1.25242305]
[1762542409653,0.1445,3421.5,3421.4,1.25242305]
[1762542409860,0.1445,3421.5,3421.4,0.4738]
[1762542410058,0.1445,3421.5,3421.4,0.48885749]
[1762542410254,0.1445,3421.5,3421.4,0.49881657]
[1762542410458,0.14658215,3422.0,3421.9,0.47373]
[1762542410752,0.00208215,3422.0,3421.9,1.25205559]
[1762542411146,0.00208215,3422.0,3421.9,0.47373]
[1762542411352,0.1421,3423.0,3422.9,0.47359]
[1762542412261,0.14507902,3423.0,3422.9,0.47359]
[1762542412457,0.14507902,3423.0,3422.9,0.49860657]
[1762542415757,0.14507902,3423.0,3422.9,0.50647875]
[1762542416263,0.14507902,3423.0,3422.9,0.51435093]
[1762542416564,0.14507902,3423.0,3422.9,0.52222311]
[1762542416958,0.14507902,3423.0,3422.9,0.53009529]
[1762542417359,0.14507902,3423.0,3422.9,0.53796747]
[1762542417857,0.14507902,3423.0,3422.9,0.5386307]
[1762542419558,0.38187902,3423.0,3422.9,0.5386307]
[1762542420361,0.14507902,3423.0,3422.9,0.5386307]
[1762542420560,0.38627902,3423.0,3422.9,0.0650407]
[1762542420760,0.38627902,3423.0,3422.9,0.5386307]
[1762542421166,0.38627902,3423.0,3422.9,0.0650407]
[1762542421361,0.38627902,3423.0,3422.9,0.5386307]
[1762542421563,0.85985902,3423.0,3422.9,0.0650407]
[1762542422267,0.14507902,3423.0,3422.9,0.5386307]
[1762542423066,0.38627902,3423.0,3422.9,0.5386307]
[1762542423265,0.85985902,3423.0,3422.9,0.0650407]
[1762542424166,0.38627902,3423.0,3422.9,0.5386307]
[1762542424761,0.14507902,3423.0,3422.9,0.5386307]
[1762542425669,0.14507902,3423.0,3422.9,1.31585032]
[1762542425870,0.14507902,3423.0,3422.9,0.5386307]
[1762542426272,0.14507902,3423.0,3422.9,1.31585032]
[1762542426472,0.38627902,3423.0,3422.9,0.5386307]
[1762542426867,0.38627902,3423.0,3422.9,1.31585032]
[1762542427370,0.14507902,3423.0,3422.9,1.31585032]
[1762542427571,0.14507902,3423.0,3422.9,0.5386307]
[1762542429566,0.38627902,3423.0,3422.9,0.5386307]
[1762542430073,0.14507902,3423.0,3422.9,0.5386307]
[1762542431671,0.85985902,3423.0,3422.9,0.0650407]
[1762542432375,0.71482,3422.7,3422.6,0.00438847]
[1762542432970,0.71486,3422.4,3422.3,0.47366]
[1762542433163,0.1377,3422.5,3422.4,0.47366]
[1762542433679,9.02e-06,3423.0,3422.9,0.47359]
[1762542434171,0.47359,3422.9,3422.8,1.03818701]
[1762542434367,0.2412,3422.7,3422.6,0.00438847]
[1762542434574,0.71482,3422.7,3422.6,0.00438847]
[1762542434969,0.2412,3422.1,3422.0,0.4737]
[1762542435169,0.2412,3421.9,3421.8,1.51192701]
[1762542435472,0.1377,3422.0,3421.9,0.47373]
[1762542436166,0.71493,3421.9,3421.8,0.47374]
[1762542436473,0.71493,3421.9,3421.6,0.00438847]
[1762542436866,0.1377,3422.0,3421.6,0.00438847]
[1762542437067,0.2412,3421.7,3421.6,0.00438847]
[1762542437463,0.2412,3421.7,3421.6,0.47815847]
[1762542438270,0.3789,3422.0,3421.9,0.47373]
[1762542438780,0.1377,3422.0,3421.9,0.47373]
[1762542439873,0.13770902,3423.0,3422.9,0.47359]
[1762542440476,9.02e-06,3423.0,3422.9,0.47359]
[1762542441074,0.13770902,3423.0,3422.9,0.47359]
[1762542444372,0.47359,3422.9,3422.8,0.4736]
[1762542444574,0.2412,3422.9,3422.8,0.4736]
[1762542444879,0.61128902,3423.0,3421.9,9.12604786]
[1762542444880,0.71482,3422.7,3422.6,0.47362]
[1762542445080,0.2412,3422.7,3422.6,0.47362]
[1762542445278,0.37890902,3423.0,3422.9,0.47359]
[1762542445579,0.68272498,3422.9,3422.8,0.4736]
[1762542445777,0.2412,3422.9,3422.8,0.4736]
[1762542445974,0.13770902,3423.0,3422.9,0.47359]
[1762542448777,9.02e-06,3423.0,3422.9,1.50985132]
[1762542449081,0.14920902,3423.0,3422.9,1.50985132]
[1762542449280,0.14920902,3423.0,3422.9,0.47359]
[1762542449878,9.02e-06,3423.0,3422.9,1.50985132]
[1762542450080,0.14920902,3423.0,3422.9,1.50985132]
[1762542450278,9.02e-06,3423.0,3422.9,1.50985132]
[1762542450777,0.1377,3424.5,3423.9,0.47345]
[1762542450981,0.1377,3424.5,3424.4,0.47338]
[1762542451176,0.1492,3424.0,3423.8,1.03464714]
[1762542451376,0.1492,3424.0,3423.7,1.03464714]
[1762542451579,0.1492,3424.0,3423.9,0.47345]
[1762542451770,0.15290491,3424.0,3423.9,0.47704235]
[1762542452390,0.00370491,3424.0,3423.9,0.47704235]
[1762542454181,0.00438167,3424.3,3424.2,0.47341]
[1762542455076,0.00777285,3424.3,3424.2,0.47341]
[1762542456981,0.47329,3425.1,3424.9,0.47331]
[1762542457183,0.6225,3425.0,3424.9,0.47331]
[1762542457583,0.6225,3425.0,3424.8,0.47332]
[1762542457888,0.15217163,3425.0,3424.9,0.47331]
[1762542458478,0.00297163,3425.0,3424.9,0.47331]
[1762542458883,0.00438167,3425.2,3425.1,0.47329]
[1762542459289,0.1492,3426.5,3425.1,13.8392]
[1762542459486,0.1492,3426.5,3426.3,0.47311]
[1762542459690,0.1492,3426.5,3426.4,0.47311]
[1762542459898,0.15243324,3426.5,3426.4,0.47685392]
[1762542460195,0.15243324,3426.5,3426.4,0.00374392]
[1762542460393,0.62552324,3426.5,3426.4,0.00374392]
[1762542460693,0.86882324,3426.5,3426.4,0.00374392]
[1762542460885,0.86882324,3426.5,3426.4,0.47685392]
[1762542461193,0.39573324,3426.5,3426.4,0.47685392]
[1762542461592,0.15243324,3426.5,3426.4,0.47685392]
[1762542461892,0.15243324,3426.5,3426.4,0.00374392]
[1762542462293,0.15243324,3426.5,3426.4,0.47685392]
[1762542464293,0.15243324,3426.5,3426.4,0.00374392]
[1762542464594,0.62552324,3426.5,3426.4,0.47685392]
[1762542464795,0.87362324,3426.5,3426.4,0.00374392]
[1762542465485,0.1487,3426.0,3424.8,3.313]
[1762542465883,0.4732,3425.8,3424.8,3.313]
[1762542466285,0.4732,3425.7,3425.5,0.47323]
[1762542466588,0.2481,3425.7,3425.6,0.47322]
[1762542467086,0.47319,3425.8,3425.6,0.47322]
[1762542467586,0.1487,3426.0,3425.5,0.00326211]
[1762542467587,0.47318,3425.9,3425.5,0.00326211]
[1762542467791,0.1487,3426.0,3425.5,0.00326211]
[1762542467995,0.1487,3426.0,3425.9,0.47317]
[1762542469189,0.15243324,3426.5,3425.5,0.00326211]
[1762542469495,0.15243324,3426.5,3426.4,0.47311]
[1762542471196,0.15243324,3426.5,3425.5,0.00326211]
[1762542471392,0.62553324,3426.5,3426.3,0.47311]
[1762542471588,0.2481,3426.3,3425.5,0.00326211]
[1762542471794,0.1487,3426.0,3425.5,0.00326211]
[1762542472194,0.1487,3426.0,3425.9,0.47317]
[1762542472698,0.3968,3426.0,3425.9,0.47317]
[1762542473598,0.1487,3426.0,3425.9,0.47317]
[1762542478096,0.3968,3426.0,3425.8,0.47319]
[1762542478398,0.1487,3426.0,3425.5,0.00326211]
[1762542478898,0.2437,3425.8,3425.7,0.47319]
[1762542479096,0.1487,3426.0,3425.9,0.47317]
[1762542479298,0.15243324,3426.5,3426.4,0.47311]
[1762542480204,0.1492,3427.0,3425.5,0.00326211]
[1762542480397,0.1447,3428.5,3427.4,0.47297]
[1762542480600,0.1447,3428.5,3426.8,1.03464714]
[1762542480900,0.2437,3427.9,3427.8,0.47291]
[1762542481197,0.00307839,3427.9,3427.8,0.47291]
[1762542485602,0.00438167,3428.2,3428.1,0.47287]
[1762542486002,0.1447,3428.0,3427.5,0.00438167]
[1762542486202,0.1447,3428.0,3427.9,0.4729]
[1762542486708,0.14681415,3428.0,3427.9,0.47651082]
[1762542490604,0.00211415,3428.0,3427.9,0.47651082]
[1762542491507,0.14681415,3428.0,3427.9,0.47651082]
[1762542491708,0.39051415,3428.0,3427.9,0.47651082]
[1762542492207,0.39051415,3428.0,3427.5,0.00438167]
[1762542492208,0.71664,3427.6,3427.5,0.00438167]
[1762542492408,0.71664,3427.6,3427.5,0.47733167]
[1762542492708,0.2437,3427.6,3427.5,0.47733167]
[1762542493306,0.2437,3427.6,3427.5,0.47948344]
[1762542493502,0.14681415,3428.0,3427.7,0.47293]
[1762542493699,0.2437,3427.8,3427.7,0.47293]
[1762542494110,0.71664,3427.6,3427.5,0.00653344]
[1762542494311,0.1447,3426.5,3426.4,0.4731]
[1762542494705,0.1447,3426.5,3425.6,1.03464714]
[1762542494912,0.1447,3426.5,3426.4,0.4731]
[1762542495505,0.1447,3426.5,3426.4,0.4752044]
[1762542495913,0.3884,3426.5,3426.4,0.4752044]
[1762542496111,0.1447,3426.5,3426.4,0.4752044]
[1762542499814,0.00438167,3426.8,3426.7,0.47306]
[1762542501315,0.1447,3427.5,3427.4,0.47297]
[1762542502512,0.00438167,3427.8,3427.7,0.47293]
[1762542503220,1.67e-06,3427.8,3427.7,0.47293]
[1762542506918,0.24370167,3427.8,3427.7,0.47293]
[1762542508220,1.67e-06,3427.8,3427.7,0.47293]
[1762542508415,0.1484,3427.5,3427.2,1.03464714]
[1762542508716,0.1484,3427.5,3427.4,0.47297]
[1762542509313,0.1484,3427.5,3427.2,1.03464714]
[1762542509512,0.226,3427.3,3427.2,0.473]
[1762542509719,0.226,3427.3,3426.8,1.55197071]
[1762542509720,0.1484,3427.5,3427.4,0.47297]
[1762542510622,0.14681415,3428.0,3427.9,0.4729]
[1762542512124,0.37281415,3428.0,3427.9,0.4729]
[1762542512534,0.14681415,3428.0,3427.9,0.4729]
[1762542513034,0.37281415,3428.0,3427.9,0.4729]
[1762542513438,0.14681415,3428.0,3427.9,0.4729]
[1762542515336,0.14681415,3428.0,3427.9,1.50061798]
[1762542516843,0.14681415,3428.0,3427.9,0.4729]
[1762542517434,0.37281415,3428.0,3427.9,0.4729]
[1762542517738,0.14681415,3428.0,3427.9,0.4729]
[1762542518139,0.37281415,3428.0,3427.9,0.4729]
[1762542518836,0.226,3427.6,3427.5,1.02771798]
[1762542519031,0.3744,3427.5,3427.4,0.47297]
[1762542519241,0.226,3427.3,3427.2,1.02771798]
[1762542519537,0.226,3426.9,3426.8,0.47304]
[1762542520143,0.1484,3426.5,3426.4,0.0021044]
[1762542520436,0.3744,3426.5,3426.4,0.4752144]
[1762542520639,0.1484,3426.5,3426.4,0.4752144]
[1762542520840,0.1484,3427.0,3426.9,0.47304]
[1762542521238,0.384,3427.0,3426.9,0.47304]
[1762542521440,0.2356,3426.8,3426.7,0.47306]
[1762542522344,0.142,3426.5,3426.4,0.0021044]
[1762542522546,0.142,3426.5,3426.4,0.4752144]
[1762542522946,0.3776,3426.5,3426.4,0.4752144]
[1762542523141,0.142,3426.5,3426.4,0.4752144]
[1762542524147,0.3776,3426.5,3426.4,0.4752144]
[1762542524444,0.3776,3426.5,3426.4,0.0021044]
[1762542524848,0.8507,3426.5,3426.4,0.0021044]
[1762542525046,0.142,3426.5,3426.4,0.4752144]
[1762542526445,0.142,3426.5,3426.4,0.0021044]
[1762542526647,0.3776,3426.5,3426.4,0.0021044]
[1762542527355,0.8507,3426.5,3426.4,0.0021044]
[1762542527746,0.70874,3426.2,3426.1,0.00438167]
[1762542528852,0.2356,3426.2,3426.1,0.48054856]
[1762542529048,0.2356,3426.2,3426.1,0.48053856]
[1762542529448,0.38198167,3426.5,3426.4,0.47311]
[1762542530148,0.14638167,3426.5,3426.4,0.47311]
[1762542532359,0.00438167,3426.5,3426.4,0.47311]
[1762542532745,0.14638167,3426.5,3426.4,0.47311]
[1762542534052,0.14638167,3426.5,3426.1,1.03511654]
[1762542534263,0.38198167,3426.5,3426.4,0.47311]
[1762542536362,0.2261,3426.2,3426.1,0.48054856]
[1762542536556,0.37248167,3426.5,3426.4,0.47311]
[1762542536756,0.2261,3426.2,3426.1,0.00739856]
[1762542537858,0.2261,3426.2,3426.1,0.48054856]
[1762542540665,0.2261,3425.6,3425.5,1.50094798]
[1762542540961,0.148,3425.5,3425.1,1.02771798]
[1762542541160,0.148,3425.5,3424.9,1.55197071]
[1762542541161,0.148,3425.0,3424.9,1.02771798]
[1762542541362,0.2261,3424.9,3424.8,1.02771798]
[1762542541558,0.2261,3424.5,3424.4,0.47338]
[1762542541758,0.37762146,3424.5,3424.4,0.47638876]
[1762542542258,0.85099146,3424.5,3424.4,0.00300876]
[1762542542562,0.2261,3423.8,3423.7,0.47348]
[1762542543152,0.148,3423.5,3423.4,0.47353]
[1762542543359,0.148,3423.5,3423.4,0.47669872]
[1762542545765,0.3741,3423.5,3423.4,0.47669872]
[1762542546755,0.148,3423.5,3423.4,0.47669872]
[1762542547162,0.148,3423.5,3423.4,0.00316872]
[1762542547463,0.3741,3423.5,3423.4,0.47669872]
[1762542547766,0.3741,3423.5,3423.4,0.00316872]
[1762542548164,0.3741,3423.5,3423.4,0.47669872]
[1762542549165,0.148,3423.5,3423.4,0.47669872]
[1762542549556,0.3741,3423.5,3423.4,0.47669872]
[1762542549960,0.148,3423.5,3423.4,0.47669872]
[1762542550859,0.00438167,3423.8,3423.7,0.47349]
[1762542552766,0.15152146,3424.5,3424.4,0.47339]
[1762542553065,0.2261,3424.2,3424.1,0.47343]
[1762542553267,0.148,3423.5,3423.4,0.47669872]
[1762542553660,0.148,3424.0,3423.9,0.47346]
[1762542554467,0.3741,3424.0,3423.9,0.47346]
[1762542555063,0.148,3423.5,3423.4,0.47669872]
[1762542555460,0.3741,3423.5,3423.4,0.47669872]
[1762542555860,0.148,3423.5,3423.4,0.47669872]
[1762542556162,0.148,3423.5,3423.4,0.00316872]
[1762542556370,0.3741,3422.5,3422.4,0.47366]
[1762542556668,0.148,3422.5,3422.4,0.47366]
[1762542557166,0.148,3423.0,3422.9,0.4736]
[1762542557365,0.148,3423.0,3422.9,0.47702317]
[1762542561969,0.00438167,3423.3,3423.2,0.47355]
[1762542564669,0.148,3423.5,3423.4,0.47353]
[1762542567676,0.00438167,3423.8,3423.7,0.47348]
[1762542570574,1.67e-06,3423.8,3423.7,0.47348]
[1762542570780,0.65059482,3424.9,3424.8,0.47333]
[1762542571077,0.148,3425.0,3424.8,0.47333]
[1762542571977,0.15033227,3425.0,3424.8,0.47333]
[1762542574485,0.15033227,3425.0,3424.9,0.47332]
[1762542574978,0.00233227,3425.0,3424.9,0.47332]
[1762542575171,0.00438167,3425.2,3425.1,0.47329]
[1762542575467,0.1469,3426.0,3425.9,0.47318]
[1762542576177,0.15042891,3426.0,3425.9,0.47595394]
[1762542577379,0.38032891,3426.0,3425.9,0.47595394]
[1762542578080,0.38032891,3426.0,3425.9,0.00277394]
[1762542578382,0.38032891,3426.0,3425.9,0.47595394]
[1762542578679,0.15042891,3426.0,3425.9,0.47595394]
[1762542579269,0.85349891,3426.0,3425.9,0.00277394]
[1762542580077,0.38032891,3426.0,3425.9,0.00277394]
[1762542580380,0.85349891,3426.0,3425.9,0.00277394]
[1762542580675,0.47321,3425.7,3424.6,1.0368597]
[1762542580886,0.2279,3424.7,3424.6,0.00438167]
[1762542581089,0.2279,3424.7,3424.6,0.47336]
[1762542581777,0.3738,3424.5,3424.4,0.47338]
[1762542581980,0.3738,3424.5,3424.4,0.47623877]
[1762542582278,0.3738,3424.5,3424.1,0.00438167]
[1762542582482,0.1459,3424.5,3424.1,0.00438167]
[1762542582884,0.1459,3424.5,3424.3,0.47339]
[1762542583478,0.1459,3424.5,3424.3,0.47609977]
[1762542586278,0.1459,3424.5,3424.4,0.47339]
[1762542586678,0.1459,3425.0,3424.9,0.47332]
[1762542590686,0.3738,3425.0,3424.9,0.47332]
[1762542596388,0.1459,3425.0,3424.9,0.47332]
[1762542598086,0.1459,3425.5,3425.4,0.47325]
[1762542599577,0.39,3425.5,3425.4,0.47325]
[1762542600386,0.2441,3425.4,3425.3,0.47326]
[1762542600682,0.1459,3425.5,3425.4,0.47325]
[1762542601189,0.39,3425.5,3425.4,0.47325]
[1762542603891,0.2441,3425.2,3425.1,1.50941307]
[1762542604085,0.2441,3425.2,3425.1,0.47328]
[1762542606199,0.71738,3425.2,3425.1,0.47328]
[1762542606496,0.71743,3424.8,3424.7,0.47335]
[1762542606695,0.3863,3424.5,3424.4,0.47339]
[1762542607297,0.1422,3425.0,3424.9,0.47332]
[1762542607495,0.1422,3425.0,3424.9,2.03113796]
[1762542607689,0.3863,3425.0,3424.9,0.47332]
[1762542608190,0.3863,3425.0,3424.9,1.51191425]
[1762542609486,0.8596,3425.0,3424.9,1.03859425]
[1762542609692,0.2441,3424.9,3424.8,0.47332]
[1762542610286,0.2441,3424.7,3424.6,1.51194425]
[1762542610490,0.1422,3425.0,3424.4,1.55781796]
[1762542610491,0.3863,3424.5,3424.4,1.51198425]
[1762542611693,0.3863,3424.5,3424.4,0.47339]
[1762542611894,0.3863,3424.5,3424.4,1.51198425]
[1762542612090,0.3863,3424.5,3424.4,0.47339]
[1762542612892,0.71749,3424.4,3424.3,9.77e-06]
[1762542613090,0.1422,3424.5,3424.4,0.47339]
[1762542613294,0.1422,3424.5,3424.3,0.47340977]
[1762542613495,0.71757,3423.8,3423.5,1.55781796]
[1762542613704,0.1422,3424.0,3421.3,8.26522832]
[1762542613705,0.2441,3423.1,3423.0,0.47358]
[1762542613897,0.3863,3423.5,3423.4,0.47353]
[1762542614594,0.3887001,3423.5,3423.4,0.47652199]
[1762542614798,0.1446001,3423.5,3423.4,0.47652199]
[1762542616592,0.0024001,3423.5,3423.4,0.47652199]
[1762542616900,0.1446001,3423.5,3423.4,0.47652199]
[1762542617301,0.3887001,3423.5,3423.4,0.00299199]
[1762542618500,0.8622101,3423.5,3423.4,0.00299199]
[1762542618895,0.3887001,3423.5,3423.4,0.47652199]
[1762542619495,0.8622101,3423.5,3423.4,0.00299199]
[1762542619696,0.2441,3423.2,3423.1,0.00438167]
[1762542619903,0.1422,3422.5,3422.0,2.436]
[1762542620198,0.1422,3422.5,3422.4,0.47366]
[1762542620599,0.1422,3423.0,3422.9,0.47359]
[1762542620798,0.1422,3423.0,3422.9,0.47608996]
[1762542621800,0.3863,3423.0,3422.9,0.47608996]
[1762542622605,0.3863,3423.0,3422.9,0.00249996]
[1762542622803,0.3863,3423.0,3422.9,0.47608996]
[1762542623701,0.1422,3423.0,3422.9,0.47608996]
[1762542623903,0.3863,3423.0,3422.9,0.47608996]
[1762542626009,0.1422,3423.0,3422.9,0.47608996]
[1762542626510,0.3863,3423.0,3422.9,0.47608996]
[1762542626904,0.1422,3423.0,3422.9,0.47608996]
[1762542627610,0.3885,3423.0,3422.9,0.47608996]
[1762542627811,0.1422,3423.0,3422.9,0.47608996]
[1762542628109,0.3885,3423.0,3422.9,0.47608996]
[1762542628907,0.1422,3423.0,3422.9,0.47608996]
[1762542629406,0.3885,3423.0,3422.9,0.47608996]
[1762542629612,0.61578,3423.0,3422.7,0.47361]
[1762542629912,0.2463,3422.8,3422.7,0.47361]
[1762542630303,0.2463,3422.7,3422.6,0.47801167]
[1762542630707,0.2463,3422.7,3422.6,0.48123599]
[1762542631713,0.3885,3423.0,3422.9,0.47359]
[1762542631910,0.1422,3423.0,3422.9,0.47359]
[1762542632214,0.1446001,3423.5,3423.4,0.47353]
[1762542635813,0.0024001,3423.5,3423.4,0.47353]
[1762542636420,0.1422,3424.5,3423.4,1.55547192]
[1762542636618,0.1383,3425.0,3423.0,2.07604786]
[1762542636619,0.1383,3425.0,3423.9,1.5563725]
[1762542636823,0.1383,3425.0,3422.6,7.78764338]
[1762542636824,0.1383,3425.0,3424.9,0.47332]
[1762542637521,0.14175917,3425.0,3424.9,0.47332]
[1762542637723,0.00438167,3425.3,3425.2,0.47328]
[1762542638316,0.1383,3426.0,3425.9,0.47318]
[1762542638725,0.14154382,3426.0,3425.9,0.47696675]
[1762542639515,0.14154382,3426.0,3425.9,0.00378675]
[1762542642525,0.00324382,3426.0,3425.9,0.00378675]
[1762542643128,0.14604382,3426.0,3425.9,0.00378675]
[1762542643323,0.00324382,3426.0,3425.9,0.47696675]
[1762542643523,0.00438167,3426.3,3426.2,0.47314]
[1762542643819,0.00438167,3426.3,3425.9,0.00378675]
[1762542643820,1.04914473,3428.5,3426.0,8.0]
[1762542644028,0.1428,3428.5,3427.4,0.47297]
[1762542644226,0.47284,3428.4,3427.8,0.47291]
[1762542644421,0.1428,3428.5,3426.3,1.5563725]
[1762542644626,0.14605568,3428.0,3426.2,2.35714085]
[1762542644828,0.0029069,3427.4,3426.8,0.00438167]
[1762542645131,0.0029069,3427.4,3427.3,0.47299]
[1762542650430,0.2280069,3427.4,3427.3,0.47299]
[1762542650825,0.0029069,3427.4,3427.3,0.47299]
[1762542651529,0.2280069,3427.4,3427.3,0.47299]
[1762542651827,0.0029069,3427.4,3427.3,0.47299]
[1762542652031,0.2280069,3427.4,3427.3,0.47299]
[1762542652626,0.2280069,3427.4,3426.8,0.00438167]
[1762542652826,0.1428,3427.0,3426.9,0.47304]
[1762542655031,0.3679,3427.0,3426.9,0.47304]
[1762542655532,0.2251,3426.9,3426.8,0.00438167]
[1762542655734,0.2251,3426.9,3426.8,0.47744167]
[1762542656334,0.2251,3426.9,3426.8,0.00438167]
[1762542656528,0.69814,3426.9,3426.8,0.00438167]
[1762542656730,0.3972,3426.5,3426.4,0.47311]
[1762542659436,0.1483,3426.5,3426.4,0.47311]
[1762542659633,0.1428,3427.0,3426.9,0.47304]
[1762542660233,0.47305,3426.9,3426.6,0.47308]
[1762542660441,0.3972,3426.5,3426.4,0.47311]
[1762542660939,0.3972,3426.5,3426.3,0.47312]
[1762542661239,0.1483,3426.5,3426.4,0.47311]
[1762542661641,0.1428,3427.0,3426.9,0.47304]
[1762542662135,0.0029069,3427.4,3427.3,0.47299]
[1762542663945,0.2518069,3427.4,3426.1,0.00438167]
[1762542665038,0.2518069,3427.4,3427.3,0.47299]
[1762542665338,0.0029069,3427.4,3427.3,0.47299]
[1762542665840,0.2489,3427.2,3427.1,0.47301]
[1762542666040,0.0029069,3427.4,3427.3,0.47299]
[1762542669834,0.00325568,3428.0,3427.9,0.4729]
[1762542670145,0.15155568,3428.0,3427.9,0.4729]
[1762542673646,0.1483,3427.5,3427.3,1.54944665]
[1762542673847,0.1483,3427.5,3427.4,0.47297]
[1762542674442,0.15155568,3428.0,3427.9,0.4729]
[1762542674837,0.40045568,3428.0,3427.9,0.4729]
[1762542679148,0.3972,3427.5,3427.4,0.47297]
[1762542679450,0.2489,3426.8,3426.7,1.54944665]
[1762542679653,0.2489,3426.8,3426.7,0.47307]
[1762542680154,0.1483,3427.0,3426.9,0.47304]
[1762542681154,0.1483,3427.5,3427.4,0.47297]
[1762542681746,0.3972,3427.5,3427.4,0.47297]
[1762542681952,0.1483,3427.5,3427.4,0.47297]
[1762542686162,0.3972,3427.5,3427.4,0.47297]
[1762542686362,0.1365,3427.0,3426.9,2.02248665]
[1762542686661,0.1365,3427.0,3426.9,0.47304]
[1762542687470,0.3855,3427.0,3426.9,0.47304]
[1762542690162,0.249,3426.9,3426.8,0.47305]
[1762542691954,0.1365,3427.0,3426.9,0.47304]
[1762542693060,0.249,3426.9,3426.8,0.47305]
[1762542693558,0.1365,3426.5,3426.4,1.54944665]
[1762542693752,0.1365,3426.5,3426.4,2.02255665]
[1762542693954,0.1365,3426.5,3426.4,0.47311]
[1762542694265,0.1365,3426.5,3426.4,2.02255665]
[1762542694457,0.1365,3426.5,3426.4,0.47311]
[1762542697359,0.1365,3426.5,3426.1,0.00438167]
[1762542697360,0.72214,3426.2,3426.1,0.00438167]
[1762542697561,0.249,3426.2,3426.1,0.00438167]
[1762542697959,0.14088167,3426.5,3426.1,0.00438167]
[1762542697960,0.14088167,3426.5,3426.4,0.47311]
[1762542698171,0.38988167,3426.5,3426.4,0.47311]
[1762542698860,0.14088167,3426.5,3426.4,0.47311]
[1762542699664,0.38988167,3426.5,3426.4,0.47311]
[1762542699857,0.14088167,3426.5,3426.4,0.47311]
[1762542700769,0.1365,3427.0,3426.9,0.47304]
[1762542701265,0.1483,3427.5,3427.4,0.47297]
[1762542704563,0.3777,3427.5,3427.4,0.47297]
[1762542705965,0.3777,3427.5,3427.0,1.5514645]
[1762542706264,0.3777,3427.5,3427.4,0.47297]
[1762542706866,0.1483,3427.5,3427.4,0.47297]
[1762542707165,0.3777,3427.5,3427.4,0.47297]
[1762542708669,0.2294,3427.1,3427.0,1.5514645]
[1762542708863,0.2294,3426.9,3426.8,0.47306]
[1762542709657,0.1467,3427.0,3426.9,0.47304]
[1762542710268,0.1467,3427.0,3426.9,2.0245045]
[1762542711367,0.1467,3427.0,3426.9,0.47304]
[1762542715775,0.3761,3427.0,3426.9,2.03123518]
[1762542715966,0.3761,3427.0,3426.9,0.47304]
[1762542716270,0.3761,3427.0,3426.9,2.03123518]
[1762542716466,0.3761,3427.0,3426.9,0.47304]
[1762542717264,0.1483,3427.5,3427.4,0.47297]
[1762542717576,0.3735,3427.5,3427.4,0.47297]
[1762542718973,0.1483,3427.5,3427.4,0.47297]
[1762542720167,0.15155568,3428.0,3427.2,8.868]
[1762542720466,0.1467,3428.5,3428.4,0.47284]
[1762542721464,0.14885718,3428.5,3428.4,0.47524444]
[1762542721875,0.14885718,3428.5,3428.4,2.03272901]
[1762542722278,0.14885718,3428.5,3428.4,0.47524444]
[1762542723071,0.37405718,3428.5,3428.4,0.47524444]
[1762542723574,0.2252,3428.2,3428.1,0.00437515]
[1762542723974,0.1459,3427.5,3427.4,2.03045457]
[1762542724682,0.1459,3427.5,3427.4,0.47506324]
[1762542724883,0.3711,3427.5,3427.4,0.47506324]
[1762542725475,0.1459,3427.5,3427.4,0.47506324]
[1762542725887,0.3711,3427.5,3427.4,0.00209324]
[1762542726184,0.3711,3427.5,3427.4,0.47506324]
[1762542726480,0.00435342,3427.8,3427.7,0.47293]
[1762542728581,0.00435342,3427.8,3427.7,2.03041457]
[1762542728981,0.14885718,3428.5,3428.4,0.47284]
[1762542729277,0.1459,3429.5,3428.9,0.47277]
[1762542729478,0.1459,3429.5,3429.4,0.4727]
[1762542729874,0.3711,3429.5,3428.9,1.55382266]
[1762542730182,0.14939088,3429.5,3429.4,0.4727]
[1762542731583,0.00349088,3429.5,3429.4,0.4727]
[1762542733477,0.14939088,3429.5,3429.4,0.4727]
[1762542735491,0.00349088,3429.5,3429.4,0.4727]
[1762542736085,0.14939088,3429.5,3429.4,0.4727]
[1762542737492,0.00349088,3429.5,3429.4,0.4727]
[1762542737992,0.1459,3430.5,3429.9,0.47263]
[1762542738896,0.14900208,3430.0,3429.9,0.47602477]
[1762542742396,0.00310208,3430.0,3429.9,0.47602477]
[1762542742599,0.14900208,3430.0,3429.9,0.47602477]
[1762542743191,0.1459,3430.5,3430.4,0.47256]
[1762542744201,0.14876994,3430.5,3430.4,0.47256]
[1762542748902,0.1459,3431.0,3430.9,0.47249]
[1762542749102,0.1484,3430.5,3430.4,0.47256]
[1762542749996,0.15190258,3430.5,3430.4,0.47256]
[1762542751205,0.1459,3431.0,3430.9,0.47249]
[1762542751708,0.1459,3432.0,3431.4,0.47242]
[1762542751909,0.1459,3432.0,3431.9,0.47235]
[1762542752315,0.14902355,3432.0,3431.9,0.47235]
[1762542752608,0.1484,3433.0,3432.9,0.47221]
[1762542753399,0.15056297,3433.0,3432.9,0.47536689]
[1762542753807,0.1484,3434.0,3433.4,0.47215]
[1762542754309,0.1484,3434.5,3434.3,0.47201]
[1762542754702,0.15055816,3434.5,3434.3,0.47201]
[1762542754909,0.2421,3434.4,3434.1,0.47640847]
[1762542755516,0.2421,3434.2,3434.1,0.00436847]